Workbook

Sheet 2016-11-11-14-19-28_2016-11-11-
A1: Number | B1: Mean | C1: Slope | D1: Peak | E1: Slice | F1: Label | G1: Slice | H1: Label | I1: Slice | J1: Label | K1: Frame | L1: Frame | N1: Slice | O1: Frame | P1: Number of frames | Q1: ="makeRectangle("&S2&", "&T2&", "&U2&", "&V2&");" -> makeRectangle(285, 120, 576, 600); | R1: Number of images | S1: Crop coordinates
A2: 1 | B2: 1 | D2: =IF(A2>=15,IF(AND(C2>=0,C3<0,B2>=B1,B2>=#REF!,B2>=#REF!,B2>=#REF!,B2>=#REF!,B2>=#REF!,B2>=#REF!,B2>=#REF!,B2>=#REF!,B2>=#REF!,B2>=#REF!,B2>=#REF!,B2>=#REF!,B2>=#REF!,B2>=#REF!,B2>=B3,B2>=B4,B2>=B5,B2>=B6,B2>=B7,B2>=B8,B2>=B9,B2>=B10,B2>=B11,B2>=B12,B2>=B13,B2>=B14,B2>=B15,B2>=B16,B2>=B17),B2,""),"") ->  | E2: =IF(D2="","",A2) ->  | F2: =IF(E2="","",ROUNDUP(E2/$R$2,0)) ->  | G2: 69 | H2: 1 | I2: 69 | J2: 1 | K2: =IF(J2=J1,"",IF(J2=J2,I2-(J2-1)*$R$2,"")&IF(J3=J2,","&I3-(J3-1)*$R$2,"")&IF(J4=J2,","&I4-(J4-1)*$R$2,"")&IF(J5=J2,","&I5-(J5-1)*$R$2,"")&IF(J6=J2,","&I6-(J6-1)*$R$2,"")&IF(J7=J2,","&I7-(J7-1)*$R$2,"")&IF(J8=J2,","&I8-(J8-1)*$R$2,"")&IF(J9=J2,","&I9-(J9-1)*$R$2,"")&IF(J10=J2,","&I10-(J10-1)*$R$2,"")&IF(J11=J2,","&I11-(J11-1)*$R$2,"")&IF(J12=J2,","&I12-(J12-1)*$R$2,"")&IF(J13=J2,","&I13-(J13-1)*$R$2,"")&IF(J14=J2,","&I14-(J14-1)*$R$2,"")&IF(J15=J2,","&I15-(J15-1)*$R$2,"")&IF(J16=J2,","&I16-(J16-1)*$R$2,"")&IF(J17=J2,","&I17-(J17-1)*$R$2,"")&IF(J18=J2,","&I18-(J18-1)*$R$2,"")&IF(J19=J2,","&I19-(J19-1)*$R$2,"")&IF(J20=J2,","&I20-(J20-1)*$R$2,"")&IF(J21=J2,","&I21-(J21-1)*$R$2,"")&IF(J22=J2,","&I22-(J22-1)*$R$2,"")&IF(J23=J2,","&I23-(J23-1)*$R$2,"")&IF(J24=J2,","&I24-(J24-1)*$R$2,"")&IF(J25=J2,","&I25-(J25-1)*$R$2,"")&IF(J26=J2,","&I26-(J26-1)*$R$2,"")&IF(J27=J2,","&I27-(J27-1)*$R$2,"")&IF(J28=J2,","&I28-(J28-1)*$R$2,"")&IF(J29=J2,","&I29-(J29-1)*$R$2,"")&IF(J30=J2,","&I30-(J30-1)*$R$2,"")) -> 69,136,203,271,339,406,474,541,609,676,744,811,878,946 | L2: 69,136,203,271,339,406,474,541,609,676,744,811,878,946 | N2: 1 | O2: 69,136,203,271,339,406,474,541,609,676,744,811,878,946 | P2: =COUNTIF(J$2:J$3099,N2) -> 14 | Q2: run("Crop"); | R2: 1000 | S2: 285 | T2: 120 | U2: 576 | V2: 600 | W2: run("Make Substack...", " slices= | X2: ");
A3: 2 | B3: 0.92146 | C3: =(B3-B2)/(A3-A2) -> -0.07854 | D3: =IF(A3>=15,IF(AND(C3>=0,C4<0,B3>=B2,B3>=B1,B3>=#REF!,B3>=#REF!,B3>=#REF!,B3>=#REF!,B3>=#REF!,B3>=#REF!,B3>=#REF!,B3>=#REF!,B3>=#REF!,B3>=#REF!,B3>=#REF!,B3>=#REF!,B3>=#REF!,B3>=B4,B3>=B5,B3>=B6,B3>=B7,B3>=B8,B3>=B9,B3>=B10,B3>=B11,B3>=B12,B3>=B13,B3>=B14,B3>=B15,B3>=B16,B3>=B17,B3>=B18),B3,""),"") ->  | F3: =IF(E3="","",ROUNDUP(E3/$R$2,0)) ->  | G3: 136 | H3: 1 | I3: 136 | J3: 1 | K3: =IF(J3=J2,"",IF(J3=J3,I3-(J3-1)*$R$2,"")&IF(J4=J3,","&I4-(J4-1)*$R$2,"")&IF(J5=J3,","&I5-(J5-1)*$R$2,"")&IF(J6=J3,","&I6-(J6-1)*$R$2,"")&IF(J7=J3,","&I7-(J7-1)*$R$2,"")&IF(J8=J3,","&I8-(J8-1)*$R$2,"")&IF(J9=J3,","&I9-(J9-1)*$R$2,"")&IF(J10=J3,","&I10-(J10-1)*$R$2,"")&IF(J11=J3,","&I11-(J11-1)*$R$2,"")&IF(J12=J3,","&I12-(J12-1)*$R$2,"")&IF(J13=J3,","&I13-(J13-1)*$R$2,"")&IF(J14=J3,","&I14-(J14-1)*$R$2,"")&IF(J15=J3,","&I15-(J15-1)*$R$2,"")&IF(J16=J3,","&I16-(J16-1)*$R$2,"")&IF(J17=J3,","&I17-(J17-1)*$R$2,"")&IF(J18=J3,","&I18-(J18-1)*$R$2,"")&IF(J19=J3,","&I19-(J19-1)*$R$2,"")&IF(J20=J3,","&I20-(J20-1)*$R$2,"")&IF(J21=J3,","&I21-(J21-1)*$R$2,"")&IF(J22=J3,","&I22-(J22-1)*$R$2,"")&IF(J23=J3,","&I23-(J23-1)*$R$2,"")&IF(J24=J3,","&I24-(J24-1)*$R$2,"")&IF(J25=J3,","&I25-(J25-1)*$R$2,"")&IF(J26=J3,","&I26-(J26-1)*$R$2,"")&IF(J27=J3,","&I27-(J27-1)*$R$2,"")&IF(J28=J3,","&I28-(J28-1)*$R$2,"")&IF(J29=J3,","&I29-(J29-1)*$R$2,"")&IF(J30=J3,","&I30-(J30-1)*$R$2,"")&IF(J31=J3,","&I31-(J31-1)*$R$2,"")) ->  | L3: 2,70,137,205,272,340,407,475,542,609,677,745,812,879,947 | N3: 2 | O3: 2,70,137,205,272,340,407,475,542,609,677,745,812,879,947 | P3: =COUNTIF(J$2:J$3099,N3) -> 15 | Q3: run("8-bit"); | W3: run("Divide...", "value=
A4: 3 | B4: 0.90253 | C4: -0.01893 | D4: =IF(A4>=15,IF(AND(C4>=0,C5<0,B4>=B3,B4>=B2,B4>=B1,B4>=#REF!,B4>=#REF!,B4>=#REF!,B4>=#REF!,B4>=#REF!,B4>=#REF!,B4>=#REF!,B4>=#REF!,B4>=#REF!,B4>=#REF!,B4>=#REF!,B4>=#REF!,B4>=B5,B4>=B6,B4>=B7,B4>=B8,B4>=B9,B4>=B10,B4>=B11,B4>=B12,B4>=B13,B4>=B14,B4>=B15,B4>=B16,B4>=B17,B4>=B18,B4>=B19),B4,""),"") ->  | G4: 203 | H4: 1 | I4: 203 | J4: 1 | K4: =IF(J4=J3,"",IF(J4=J4,I4-(J4-1)*$R$2,"")&IF(J5=J4,","&I5-(J5-1)*$R$2,"")&IF(J6=J4,","&I6-(J6-1)*$R$2,"")&IF(J7=J4,","&I7-(J7-1)*$R$2,"")&IF(J8=J4,","&I8-(J8-1)*$R$2,"")&IF(J9=J4,","&I9-(J9-1)*$R$2,"")&IF(J10=J4,","&I10-(J10-1)*$R$2,"")&IF(J11=J4,","&I11-(J11-1)*$R$2,"")&IF(J12=J4,","&I12-(J12-1)*$R$2,"")&IF(J13=J4,","&I13-(J13-1)*$R$2,"")&IF(J14=J4,","&I14-(J14-1)*$R$2,"")&IF(J15=J4,","&I15-(J15-1)*$R$2,"")&IF(J16=J4,","&I16-(J16-1)*$R$2,"")&IF(J17=J4,","&I17-(J17-1)*$R$2,"")&IF(J18=J4,","&I18-(J18-1)*$R$2,"")&IF(J19=J4,","&I19-(J19-1)*$R$2,"")&IF(J20=J4,","&I20-(J20-1)*$R$2,"")&IF(J21=J4,","&I21-(J21-1)*$R$2,"")&IF(J22=J4,","&I22-(J22-1)*$R$2,"")&IF(J23=J4,","&I23-(J23-1)*$R$2,"")&IF(J24=J4,","&I24-(J24-1)*$R$2,"")&IF(J25=J4,","&I25-(J25-1)*$R$2,"")&IF(J26=J4,","&I26-(J26-1)*$R$2,"")&IF(J27=J4,","&I27-(J27-1)*$R$2,"")&IF(J28=J4,","&I28-(J28-1)*$R$2,"")&IF(J29=J4,","&I29-(J29-1)*$R$2,"")&IF(J30=J4,","&I30-(J30-1)*$R$2,"")&IF(J31=J4,","&I31-(J31-1)*$R$2,"")&IF(J32=J4,","&I32-(J32-1)*$R$2,"")) ->  | L4: 3,70,138,205,273,340,408,475,543,610,678,745,813,880,948 | N4: 3 | O4: 3,70,138,205,273,340,408,475,543,610,678,745,813,880,948 | P4: 15 | Q4: run("32-bit");
A5: 4 | B5: 0.88859 | C5: -0.01394 | D5: =IF(A5>=15,IF(AND(C5>=0,C6<0,B5>=B4,B5>=B3,B5>=B2,B5>=B1,B5>=#REF!,B5>=#REF!,B5>=#REF!,B5>=#REF!,B5>=#REF!,B5>=#REF!,B5>=#REF!,B5>=#REF!,B5>=#REF!,B5>=#REF!,B5>=#REF!,B5>=B6,B5>=B7,B5>=B8,B5>=B9,B5>=B10,B5>=B11,B5>=B12,B5>=B13,B5>=B14,B5>=B15,B5>=B16,B5>=B17,B5>=B18,B5>=B19,B5>=B20),B5,""),"") ->  | G5: 271 | H5: 1 | I5: 271 | J5: 1 | L5: 4,71,139,206,274,341,408,476,544,611,679,746,813,881,948 | N5: 4 | O5: 4,71,139,206,274,341,408,476,544,611,679,746,813,881,948 | P5: 15 | Q5: rename("X");
A6: 5 | B6: 0.86937 | C6: -0.01922 | D6: =IF(A6>=15,IF(AND(C6>=0,C7<0,B6>=B5,B6>=B4,B6>=B3,B6>=B2,B6>=B1,B6>=#REF!,B6>=#REF!,B6>=#REF!,B6>=#REF!,B6>=#REF!,B6>=#REF!,B6>=#REF!,B6>=#REF!,B6>=#REF!,B6>=#REF!,B6>=B7,B6>=B8,B6>=B9,B6>=B10,B6>=B11,B6>=B12,B6>=B13,B6>=B14,B6>=B15,B6>=B16,B6>=B17,B6>=B18,B6>=B19,B6>=B20,B6>=B21),B6,""),"") ->  | G6: 339 | H6: 1 | I6: 339 | J6: 1 | L6: 5,73,140,208,275,342,410,478,545,613,680,748,815,883,950 | N6: 5 | O6: 5,73,140,208,275,342,410,478,545,613,680,748,815,883,950 | P6: 15 | Q6: =$W$2&O2&$X$2 -> run("Make Substack...", " slices=69,136,203,271,339,406,474,541,609,676,744,811,878,946");
A7: 6 | B7: 0.85989 | C7: -0.00948 | D7: =IF(A7>=15,IF(AND(C7>=0,C8<0,B7>=B6,B7>=B5,B7>=B4,B7>=B3,B7>=B2,B7>=B1,B7>=#REF!,B7>=#REF!,B7>=#REF!,B7>=#REF!,B7>=#REF!,B7>=#REF!,B7>=#REF!,B7>=#REF!,B7>=#REF!,B7>=B8,B7>=B9,B7>=B10,B7>=B11,B7>=B12,B7>=B13,B7>=B14,B7>=B15,B7>=B16,B7>=B17,B7>=B18,B7>=B19,B7>=B20,B7>=B21,B7>=B22),B7,""),"") ->  | G7: 406 | H7: 1 | I7: 406 | J7: 1 | L7: 6,73,141,209,276,344,411,478,546,614,681,748,816,883,951 | N7: 6 | O7: 6,73,141,209,276,344,411,478,546,614,681,748,816,883,951 | P7: 15 | Q7: rename("Y");
A8: 7 | B8: 0.85296 | C8: -0.00693 | D8: =IF(A8>=15,IF(AND(C8>=0,C9<0,B8>=B7,B8>=B6,B8>=B5,B8>=B4,B8>=B3,B8>=B2,B8>=B1,B8>=#REF!,B8>=#REF!,B8>=#REF!,B8>=#REF!,B8>=#REF!,B8>=#REF!,B8>=#REF!,B8>=#REF!,B8>=B9,B8>=B10,B8>=B11,B8>=B12,B8>=B13,B8>=B14,B8>=B15,B8>=B16,B8>=B17,B8>=B18,B8>=B19,B8>=B20,B8>=B21,B8>=B22,B8>=B23),B8,""),"") ->  | G8: 474 | H8: 1 | I8: 474 | J8: 1 | L8: 7,74,142,209,277,344,412,479,547,614,682,749,816,884,951 | N8: 7 | O8: 7,74,142,209,277,344,412,479,547,614,682,749,816,884,951 | P8: 15 | Q8: run("Z Project...", "projection=[Average Intensity]");
A9: 8 | B9: 0.84241 | C9: -0.01055 | D9: =IF(A9>=15,IF(AND(C9>=0,C10<0,B9>=B8,B9>=B7,B9>=B6,B9>=B5,B9>=B4,B9>=B3,B9>=B2,B9>=B1,B9>=#REF!,B9>=#REF!,B9>=#REF!,B9>=#REF!,B9>=#REF!,B9>=#REF!,B9>=#REF!,B9>=B10,B9>=B11,B9>=B12,B9>=B13,B9>=B14,B9>=B15,B9>=B16,B9>=B17,B9>=B18,B9>=B19,B9>=B20,B9>=B21,B9>=B22,B9>=B23,B9>=B24),B9,""),"") ->  | G9: 541 | H9: 1 | I9: 541 | J9: 1 | L9: 8,76,143,211,278,346,413,481,548,616,683,751,818,886,953 | N9: 8 | O9: 8,76,143,211,278,346,413,481,548,616,683,751,818,886,953 | P9: 15 | Q9: imageCalculator("Subtract create stack", "Y","AVG_Y");
A10: 9 | B10: 0.83651 | C10: -0.0059 | D10: =IF(A10>=15,IF(AND(C10>=0,C11<0,B10>=B9,B10>=B8,B10>=B7,B10>=B6,B10>=B5,B10>=B4,B10>=B3,B10>=B2,B10>=B1,B10>=#REF!,B10>=#REF!,B10>=#REF!,B10>=#REF!,B10>=#REF!,B10>=#REF!,B10>=B11,B10>=B12,B10>=B13,B10>=B14,B10>=B15,B10>=B16,B10>=B17,B10>=B18,B10>=B19,B10>=B20,B10>=B21,B10>=B22,B10>=B23,B10>=B24,B10>=B25),B10,""),"") ->  | G10: 609 | H10: 1 | I10: 609 | J10: 1 | L10: 9,76,144,212,279,346,414,481,549,616,684,751,819,886,954 | N10: 9 | O10: 9,76,144,212,279,346,414,481,549,616,684,751,819,886,954 | P10: 15 | Q10: selectWindow("Result of Y");
A11: 10 | B11: 0.82626 | C11: -0.01025 | D11: =IF(A11>=15,IF(AND(C11>=0,C12<0,B11>=B10,B11>=B9,B11>=B8,B11>=B7,B11>=B6,B11>=B5,B11>=B4,B11>=B3,B11>=B2,B11>=B1,B11>=#REF!,B11>=#REF!,B11>=#REF!,B11>=#REF!,B11>=#REF!,B11>=B12,B11>=B13,B11>=B14,B11>=B15,B11>=B16,B11>=B17,B11>=B18,B11>=B19,B11>=B20,B11>=B21,B11>=B22,B11>=B23,B11>=B24,B11>=B25,B11>=B26),B11,""),"") ->  | G11: 676 | H11: 1 | I11: 676 | J11: 1 | L11: 10,77,145,212,279,347,415,482,550,617,685,752,819,887,954 | N11: 10 | O11: 10,77,145,212,279,347,415,482,550,617,685,752,819,887,954 | P11: 15 | Q11: run("Square", "stack");
A12: 11 | B12: 0.78352 | C12: -0.04274 | D12: =IF(A12>=15,IF(AND(C12>=0,C13<0,B12>=B11,B12>=B10,B12>=B9,B12>=B8,B12>=B7,B12>=B6,B12>=B5,B12>=B4,B12>=B3,B12>=B2,B12>=B1,B12>=#REF!,B12>=#REF!,B12>=#REF!,B12>=#REF!,B12>=B13,B12>=B14,B12>=B15,B12>=B16,B12>=B17,B12>=B18,B12>=B19,B12>=B20,B12>=B21,B12>=B22,B12>=B23,B12>=B24,B12>=B25,B12>=B26,B12>=B27),B12,""),"") ->  | G12: 744 | H12: 1 | I12: 744 | J12: 1 | L12: 11,79,146,214,281,349,416,484,551,619,686,754,821,888,956 | N12: 11 | O12: 11,79,146,214,281,349,416,484,551,619,686,754,821,888,956 | P12: 15 | Q12: run("Z Project...", "projection=[Sum Slices]");
A13: 12 | B13: 0.745 | C13: -0.03852 | D13: =IF(A13>=15,IF(AND(C13>=0,C14<0,B13>=B12,B13>=B11,B13>=B10,B13>=B9,B13>=B8,B13>=B7,B13>=B6,B13>=B5,B13>=B4,B13>=B3,B13>=B2,B13>=B1,B13>=#REF!,B13>=#REF!,B13>=#REF!,B13>=B14,B13>=B15,B13>=B16,B13>=B17,B13>=B18,B13>=B19,B13>=B20,B13>=B21,B13>=B22,B13>=B23,B13>=B24,B13>=B25,B13>=B26,B13>=B27,B13>=B28),B13,""),"") ->  | G13: 811 | H13: 1 | I13: 811 | J13: 1 | L13: 12,80,147,215,282,349,417,485,552,619,687,755,822,889,957 | N13: 12 | O13: 12,80,147,215,282,349,417,485,552,619,687,755,822,889,957 | P13: 15 | Q13: =$W$3&P2&$X$2 -> run("Divide...", "value=14");
A14: 13 | B14: 0.70673 | C14: -0.03827 | D14: =IF(A14>=15,IF(AND(C14>=0,C15<0,B14>=B13,B14>=B12,B14>=B11,B14>=B10,B14>=B9,B14>=B8,B14>=B7,B14>=B6,B14>=B5,B14>=B4,B14>=B3,B14>=B2,B14>=B1,B14>=#REF!,B14>=#REF!,B14>=B15,B14>=B16,B14>=B17,B14>=B18,B14>=B19,B14>=B20,B14>=B21,B14>=B22,B14>=B23,B14>=B24,B14>=B25,B14>=B26,B14>=B27,B14>=B28,B14>=B29),B14,""),"") ->  | G14: 878 | H14: 1 | I14: 878 | J14: 1 | L14: 13,80,148,215,283,350,418,485,553,620,688,755,823,890,958 | N14: 13 | O14: 13,80,148,215,283,350,418,485,553,620,688,755,823,890,958 | P14: 15 | Q14: run("Square Root");
A15: 14 | B15: 0.67166 | C15: -0.03507 | D15: =IF(A15>=15,IF(AND(C15>=0,C16<0,B15>=B14,B15>=B13,B15>=B12,B15>=B11,B15>=B10,B15>=B9,B15>=B8,B15>=B7,B15>=B6,B15>=B5,B15>=B4,B15>=B3,B15>=B2,B15>=B1,B15>=#REF!,B15>=B16,B15>=B17,B15>=B18,B15>=B19,B15>=B20,B15>=B21,B15>=B22,B15>=B23,B15>=B24,B15>=B25,B15>=B26,B15>=B27,B15>=B28,B15>=B29,B15>=B30),B15,""),"") ->  | G15: 946 | H15: 1 | I15: 946 | J15: 1 | L15: 14,81,149,216,283,351,418,486,554,621,689,756,824,891,958 | N15: 14 | O15: 14,81,149,216,283,351,418,486,554,621,689,756,824,891,958 | P15: 15 | Q15: rename("1");
A16: 15 | B16: 0.62175 | C16: -0.04991 | D16: =IF(A16>=15,IF(AND(C16>=0,C17<0,B16>=B15,B16>=B14,B16>=B13,B16>=B12,B16>=B11,B16>=B10,B16>=B9,B16>=B8,B16>=B7,B16>=B6,B16>=B5,B16>=B4,B16>=B3,B16>=B2,B16>=B1,B16>=B17,B16>=B18,B16>=B19,B16>=B20,B16>=B21,B16>=B22,B16>=B23,B16>=B24,B16>=B25,B16>=B26,B16>=B27,B16>=B28,B16>=B29,B16>=B30,B16>=B31),B16,""),"") ->  | G16: 1002 | H16: 2 | I16: 1002 | J16: 2 | K16: 2,70,137,205,272,340,407,475,542,609,677,745,812,879,947 | L16: 15,83,150,218,285,353,420,488,555,623,690,758,825,892,960 | N16: 15 | O16: 15,83,150,218,285,353,420,488,555,623,690,758,825,892,960 | P16: 15 | Q16: selectWindow("Result of Y");
A17: 16 | B17: 0.6069 | C17: -0.01485 | G17: 1070 | H17: 2 | I17: 1070 | J17: 2 | L17: 16,83,151,219,286,353,421,488,556,624,691,758,825,893,961 | N17: 16 | O17: 16,83,151,219,286,353,421,488,556,624,691,758,825,893,961 | P17: 15 | Q17: close();
A18: 17 | B18: 0.60007 | C18: -0.00683 | G18: 1137 | H18: 2 | I18: 1137 | J18: 2 | L18: 17,84,152,219,287,354,422,489,557,624,692,759,827,894,961 | N18: 17 | O18: 17,84,152,219,287,354,422,489,557,624,692,759,827,894,961 | P18: 15 | Q18: selectWindow("AVG_Y");
A19: 18 | B19: 0.57424 | C19: -0.02583 | G19: 1205 | H19: 2 | I19: 1205 | J19: 2 | L19: 18,86,153,221,288,355,423,491,558,626,693,761,828,895,963 | N19: 18 | O19: 18,86,153,221,288,355,423,491,558,626,693,761,828,895,963 | P19: 15 | Q19: close();
A20: 19 | B20: 0.57424 | C20: 0 | G20: 1272 | H20: 2 | I20: 1272 | J20: 2 | L20: 19,86,154,222,289,356,424,491,559,627,694,762,829,896,964 | N20: 19 | O20: 19,86,154,222,289,356,424,491,559,627,694,762,829,896,964 | P20: 15 | Q20: selectWindow("Y");
A21: 20 | B21: 0.57384 | C21: -0.0004 | G21: 1340 | H21: 2 | I21: 1340 | J21: 2 | L21: 20,87,155,222,290,357,425,492,560,627,695,762,830,897,964 | N21: 20 | O21: 20,87,155,222,290,357,425,492,560,627,695,762,830,897,964 | P21: 15 | Q21: close();
A22: 21 | B22: 0.57583 | C22: 0.00199 | G22: 1407 | H22: 2 | I22: 1407 | J22: 2 | L22: 21,89,156,224,292,359,426,494,561,629,696,764,831,898,966 | N22: 21 | O22: 21,89,156,224,292,359,426,494,561,629,696,764,831,898,966 | P22: 15 | Q22: selectWindow("X");
A23: 22 | B23: 0.57534 | C23: -0.00049 | G23: 1475 | H23: 2 | I23: 1475 | J23: 2 | L23: 22,90,157,225,292,359,427,494,562,630,697,765,832,899,967 | N23: 22 | O23: 22,90,157,225,292,359,427,494,562,630,697,765,832,899,967 | P23: 15 | Q23: =$W$2&O3&$X$2 -> run("Make Substack...", " slices=2,70,137,205,272,340,407,475,542,609,677,745,812,879,947");
A24: 23 | B24: 0.56732 | C24: -0.00802 | G24: 1542 | H24: 2 | I24: 1542 | J24: 2 | L24: 23,90,158,225,293,360,428,495,563,630,698,765,833,901,968 | N24: 23 | O24: 23,90,158,225,293,360,428,495,563,630,698,765,833,901,968 | P24: 15 | Q24: rename("Y");
A25: 24 | B25: 0.54911 | C25: -0.01821 | G25: 1609 | H25: 2 | I25: 1609 | J25: 2 | L25: 24,92,159,227,295,362,429,497,564,632,700,767,834,902,969 | N25: 24 | O25: 24,92,159,227,295,362,429,497,564,632,700,767,834,902,969 | P25: 15 | Q25: run("Z Project...", "projection=[Average Intensity]");
A26: 25 | B26: 0.54502 | C26: -0.00409 | G26: 1677 | H26: 2 | I26: 1677 | J26: 2 | L26: 25,93,160,228,295,363,430,498,565,633,700,768,835,902,970 | N26: 25 | O26: 25,93,160,228,295,363,430,498,565,633,700,768,835,902,970 | P26: 15 | Q26: imageCalculator("Subtract create stack", "Y","AVG_Y");
A27: 26 | B27: 0.54278 | C27: -0.00224 | G27: 1745 | H27: 2 | I27: 1745 | J27: 2 | L27: 26,93,161,229,296,363,431,498,566,633,701,768,836,903,971 | N27: 26 | O27: 26,93,161,229,296,363,431,498,566,633,701,768,836,903,971 | P27: 15 | Q27: selectWindow("Result of Y");
A28: 27 | B28: 0.54379 | C28: 0.00101 | G28: 1812 | H28: 2 | I28: 1812 | J28: 2 | L28: 27,94,162,229,297,364,432,499,567,634,702,769,837,904,971 | N28: 27 | O28: 27,94,162,229,297,364,432,499,567,634,702,769,837,904,971 | P28: 15 | Q28: run("Square", "stack");
A29: 28 | B29: 0.54255 | C29: -0.00124 | G29: 1879 | H29: 2 | I29: 1879 | J29: 2 | L29: 28,96,163,231,298,366,433,501,568,636,703,771,838,906,973 | N29: 28 | O29: 28,96,163,231,298,366,433,501,568,636,703,771,838,906,973 | P29: 15 | Q29: run("Z Project...", "projection=[Sum Slices]");
A30: 29 | B30: 0.53904 | C30: -0.00351 | G30: 1947 | H30: 2 | I30: 1947 | J30: 2 | L30: 29,96,164,232,299,366,434,501,569,636,704,771,839,907,974 | N30: 29 | O30: 29,96,164,232,299,366,434,501,569,636,704,771,839,907,974 | P30: 15 | Q30: =$W$3&P3&$X$2 -> run("Divide...", "value=15");
A31: 30 | B31: 0.5396 | C31: 0.00056 | G31: 2003 | H31: 3 | I31: 2003 | J31: 3 | K31: 3,70,138,205,273,340,408,475,543,610,678,745,813,880,948 | L31: 30,97,165,232,299,367,435,502,570,637,705,772,839,907,974 | N31: 30 | O31: 30,97,165,232,299,367,435,502,570,637,705,772,839,907,974 | P31: =COUNTIF(J$2:J$3099,N31) -> 15 | Q31: run("Square Root");
A32: 31 | B32: 0.5431 | C32: 0.0035 | G32: 2070 | H32: 3 | I32: 2070 | J32: 3 | L32: 31,99,166,234,301,369,436,504,571,639,706,774,841,908,976 | N32: 31 | O32: 31,99,166,234,301,369,436,504,571,639,706,774,841,908,976 | P32: 15 | Q32: rename("2");
A33: 32 | B33: 0.54874 | C33: 0.00564 | G33: 2138 | H33: 3 | I33: 2138 | J33: 3 | L33: 32,100,167,235,302,369,437,504,572,639,707,775,842,909,977 | N33: 32 | O33: 32,100,167,235,302,369,437,504,572,639,707,775,842,909,977 | P33: 15 | Q33: selectWindow("Result of Y");
A34: 33 | B34: 0.55405 | C34: 0.00531 | G34: 2205 | H34: 3 | I34: 2205 | J34: 3 | L34: 33,100,168,235,303,370,438,505,573,640,708,775,842,910,978 | N34: 33 | O34: 33,100,168,235,303,370,438,505,573,640,708,775,842,910,978 | P34: 15 | Q34: close();
A35: 34 | B35: 0.57181 | C35: 0.01776 | G35: 2273 | H35: 3 | I35: 2273 | J35: 3 | L35: 34,102,169,237,305,372,439,507,574,642,709,777,844,912,979 | N35: 34 | O35: 34,102,169,237,305,372,439,507,574,642,709,777,844,912,979 | P35: 15 | Q35: selectWindow("AVG_Y");
A36: 35 | B36: 0.57449 | C36: 0.00268 | G36: 2340 | H36: 3 | I36: 2340 | J36: 3 | K36: =IF(J36=J35,"",IF(J36=J36,I36-(J36-1)*$R$2,"")&IF(J37=J36,","&I37-(J37-1)*$R$2,"")&IF(J38=J36,","&I38-(J38-1)*$R$2,"")&IF(J39=J36,","&I39-(J39-1)*$R$2,"")&IF(J40=J36,","&I40-(J40-1)*$R$2,"")&IF(J41=J36,","&I41-(J41-1)*$R$2,"")&IF(J42=J36,","&I42-(J42-1)*$R$2,"")&IF(J43=J36,","&I43-(J43-1)*$R$2,"")&IF(J44=J36,","&I44-(J44-1)*$R$2,"")&IF(J45=J36,","&I45-(J45-1)*$R$2,"")&IF(J46=J36,","&I46-(J46-1)*$R$2,"")&IF(J47=J36,","&I47-(J47-1)*$R$2,"")&IF(J48=J36,","&I48-(J48-1)*$R$2,"")&IF(J49=J36,","&I49-(J49-1)*$R$2,"")&IF(J50=J36,","&I50-(J50-1)*$R$2,"")&IF(J51=J36,","&I51-(J51-1)*$R$2,"")&IF(J52=J36,","&I52-(J52-1)*$R$2,"")&IF(J53=J36,","&I53-(J53-1)*$R$2,"")&IF(J54=J36,","&I54-(J54-1)*$R$2,"")&IF(J55=J36,","&I55-(J55-1)*$R$2,"")&IF(J56=J36,","&I56-(J56-1)*$R$2,"")&IF(J57=J36,","&I57-(J57-1)*$R$2,"")&IF(J58=J36,","&I58-(J58-1)*$R$2,"")&IF(J59=J36,","&I59-(J59-1)*$R$2,"")&IF(J60=J36,","&I60-(J60-1)*$R$2,"")&IF(J61=J36,","&I61-(J61-1)*$R$2,"")&IF(J62=J36,","&I62-(J62-1)*$R$2,"")&IF(J63=J36,","&I63-(J63-1)*$R$2,"")&IF(J64=J36,","&I64-(J64-1)*$R$2,"")) ->  | L36: 35,103,170,238,305,373,440,508,575,643,710,778,845,912,980 | N36: 35 | O36: 35,103,170,238,305,373,440,508,575,643,710,778,845,912,980 | P36: 15 | Q36: close();
A37: 36 | B37: 0.58183 | C37: 0.00734 | G37: 2408 | H37: 3 | I37: 2408 | J37: 3 | L37: 36,103,171,239,306,373,441,508,576,643,711,778,846,913,981 | N37: 36 | O37: 36,103,171,239,306,373,441,508,576,643,711,778,846,913,981 | P37: 15 | Q37: selectWindow("Y");
A38: 37 | B38: 0.58954 | C38: 0.00771 | G38: 2475 | H38: 3 | I38: 2475 | J38: 3 | L38: 37,104,172,239,307,374,441,509,577,644,712,779,847,914,981 | N38: 37 | O38: 37,104,172,239,307,374,441,509,577,644,712,779,847,914,981 | P38: 15 | Q38: close();
A39: 38 | B39: 0.59682 | C39: 0.00728 | G39: 2543 | H39: 3 | I39: 2543 | J39: 3 | L39: 38,84,106,173,241,308,375,443,511,578,646,713,781,848,915,961,983 | N39: 38 | O39: 38,84,106,173,241,308,375,443,511,578,646,713,781,848,915,961,983 | P39: 17 | Q39: selectWindow("X");
A40: 39 | B40: 0.59609 | C40: -0.00073 | G40: 2610 | H40: 3 | I40: 2610 | J40: 3 | L40: 39,84,106,174,219,242,309,353,377,421,444,488,511,579,624,647,714,759,781,825,849,917,961,984 | N40: 39 | O40: 39,84,106,174,219,242,309,353,377,421,444,488,511,579,624,647,714,759,781,825,849,917,961,984 | P40: 24 | Q40: =$W$2&O4&$X$2 -> run("Make Substack...", " slices=3,70,138,205,273,340,408,475,543,610,678,745,813,880,948");
A41: 40 | B41: 0.60574 | C41: 0.00965 | G41: 2678 | H41: 3 | I41: 2678 | J41: 3 | L41: 16,40,84,107,175,219,242,286,310,353,378,421,445,488,512,556,580,624,647,691,715,759,782,825,850,894,917,961,984 | N41: 40 | O41: 16,40,84,107,175,219,242,286,310,353,378,421,445,488,512,556,580,624,647,691,715,759,782,825,850,894,917,961,984 | P41: 29 | Q41: rename("Y");
A42: 41 | B42: 0.60783 | C42: 0.00209 | G42: 2745 | H42: 3 | I42: 2745 | J42: 3 | L42: 16,41,83,109,150,176,217,244,286,311,353,379,421,446,488,514,555,581,624,649,691,716,759,784,825,851,893,918,961 | N42: 41 | O42: 16,41,83,109,150,176,217,244,286,311,353,379,421,446,488,514,555,581,624,649,691,716,759,784,825,851,893,918,961 | P42: 30 | Q42: run("Z Project...", "projection=[Average Intensity]");
A43: 42 | B43: 0.61351 | C43: 0.00568 | F43: =IF(E43="","",ROUNDUP(E43/$R$2,0)) ->  | G43: 2813 | H43: 3 | I43: 2813 | J43: 3 | L43: 16,42,83,110,150,177,217,245,286,312,353,379,421,447,488,514,555,582,623,649,692,717,758,785,825,852,893,920,960 | N43: 42 | O43: 16,42,83,110,150,177,217,245,286,312,353,379,421,447,488,514,555,582,623,649,692,717,758,785,825,852,893,920,960 | P43: 30 | Q43: imageCalculator("Subtract create stack", "Y","AVG_Y");
A44: 43 | B44: 0.62318 | C44: 0.00967 | G44: 2880 | H44: 3 | I44: 2880 | J44: 3 | L44: 43,83,110,150,178,217,245,285,313,353,381,421,448,488,515,555,583,622,650,690,718,758,785,825,853,892,920,960,988 | N44: 43 | O44: 43,83,110,150,178,217,245,285,313,353,381,421,448,488,515,555,583,622,650,690,718,758,785,825,853,892,920,960,988 | P44: 29 | Q44: selectWindow("Result of Y");
A45: 44 | B45: 0.63249 | C45: 0.00931 | G45: 2948 | H45: 3 | I45: 2948 | J45: 3 | L45: 44,81,112,149,179,217,247,285,315,352,382,419,449,487,517,555,584,622,652,689,719,757,787,825,854,892,921,959,989 | N45: 44 | O45: 44,81,112,149,179,217,247,285,315,352,382,419,449,487,517,555,584,622,652,689,719,757,787,825,854,892,921,959,989 | P45: 29 | Q45: run("Square", "stack");
A46: 45 | B46: 0.63471 | C46: 0.00222 | G46: 3004 | H46: 4 | I46: 3004 | J46: 4 | K46: 4,71,139,206,274,341,408,476,544,611,679,746,813,881,948 | L46: 45,113,149,180,217,248,285,315,383,419,450,486,518,555,585,622,653,689,720,788,824,855,891,923,959,990 | N46: 45 | O46: 45,113,149,180,217,248,285,315,383,419,450,486,518,555,585,622,653,689,720,788,824,855,891,923,959,990 | P46: 26 | Q46: run("Z Project...", "projection=[Sum Slices]");
A47: 46 | B47: 0.64342 | C47: 0.00871 | G47: 3071 | H47: 4 | I47: 3071 | J47: 4 | L47: 46,114,181,249,316,383,451,518,586,653,721,788,856,924,991 | N47: 46 | O47: 46,114,181,249,316,383,451,518,586,653,721,788,856,924,991 | P47: 15 | Q47: =$W$3&P4&$X$2 -> run("Divide...", "value=15");
A48: 47 | B48: 0.65167 | C48: 0.00825 | G48: 3139 | H48: 4 | I48: 3139 | J48: 4 | L48: 47,114,182,249,317,384,451,519,587,654,722,789,857,924,991 | N48: 47 | O48: 47,114,182,249,317,384,451,519,587,654,722,789,857,924,991 | P48: 15 | Q48: run("Square Root");
A49: 48 | B49: 0.66493 | C49: 0.01326 | G49: 3206 | H49: 4 | I49: 3206 | J49: 4 | L49: 48,116,183,251,318,386,453,521,588,656,723,791,858,926,993 | N49: 48 | O49: 48,116,183,251,318,386,453,521,588,656,723,791,858,926,993 | P49: 15 | Q49: rename("3");
A50: 49 | B50: 0.67135 | C50: 0.00642 | G50: 3274 | H50: 4 | I50: 3274 | J50: 4 | L50: 49,117,184,252,319,386,454,521,589,656,724,791,859,926,994 | N50: 49 | O50: 49,117,184,252,319,386,454,521,589,656,724,791,859,926,994 | P50: 15 | Q50: selectWindow("Result of Y");
A51: 50 | B51: 0.67583 | C51: 0.00448 | G51: 3341 | H51: 4 | I51: 3341 | J51: 4 | L51: 50,117,185,252,320,387,455,522,590,657,725,792,859,927,994 | N51: 50 | O51: 50,117,185,252,320,387,455,522,590,657,725,792,859,927,994 | P51: 15 | Q51: close();
A52: 51 | B52: 0.69675 | C52: 0.02092 | G52: 3408 | H52: 4 | I52: 3408 | J52: 4 | L52: 51,119,186,254,321,389,456,524,591,659,726,794,861,928,996 | N52: 51 | O52: 51,119,186,254,321,389,456,524,591,659,726,794,861,928,996 | P52: 15 | Q52: selectWindow("AVG_Y");
A53: 52 | B53: 0.70289 | C53: 0.00614 | G53: 3476 | H53: 4 | I53: 3476 | J53: 4 | L53: 52,120,187,255,322,389,457,524,592,660,727,795,862,929,997 | N53: 52 | O53: 52,120,187,255,322,389,457,524,592,660,727,795,862,929,997 | P53: 15 | Q53: close();
A54: 53 | B54: 0.71368 | C54: 0.01079 | G54: 3544 | H54: 4 | I54: 3544 | J54: 4 | L54: 53,120,188,255,323,391,458,525,593,660,728,795,863,930,998 | N54: 53 | O54: 53,120,188,255,323,391,458,525,593,660,728,795,863,930,998 | P54: 15 | Q54: selectWindow("Y");
A55: 54 | B55: 0.72985 | C55: 0.01617 | G55: 3611 | H55: 4 | I55: 3611 | J55: 4 | L55: 54,122,189,257,325,392,459,527,594,662,729,797,864,932,999 | N55: 54 | O55: 54,122,189,257,325,392,459,527,594,662,729,797,864,932,999 | P55: 15 | Q55: close();
A56: 55 | B56: 0.73418 | C56: 0.00433 | G56: 3679 | H56: 4 | I56: 3679 | J56: 4 | L56: 55,123,190,258,325,392,460,528,595,662,730,798,865,932,1000 | N56: 55 | O56: 55,123,190,258,325,392,460,528,595,662,730,798,865,932,1000 | P56: 15 | Q56: selectWindow("X");
A57: 56 | B57: 0.74193 | C57: 0.00775 | G57: 3746 | H57: 4 | I57: 3746 | J57: 4 | L57: 56,123,191,258,326,394,461,528,596,663,731,798,866,934,1000 | N57: 56 | O57: 56,123,191,258,326,394,461,528,596,663,731,798,866,934,1000 | P57: 15 | Q57: =$W$2&O5&$X$2 -> run("Make Substack...", " slices=4,71,139,206,274,341,408,476,544,611,679,746,813,881,948");
A58: 57 | B58: 0.75663 | C58: 0.0147 | G58: 3813 | H58: 4 | I58: 3813 | J58: 4 | L58: 57,124,192,259,327,394,461,529,597,664,732,799,867,934,1000 | N58: 57 | O58: 57,124,192,259,327,394,461,529,597,664,732,799,867,934,1000 | P58: 15 | Q58: rename("Y");
A59: 58 | B59: 0.77786 | C59: 0.02123 | G59: 3881 | H59: 4 | I59: 3881 | J59: 4 | L59: 58,126,193,261,328,396,463,531,598,666,733,801,868,936,1000 | N59: 58 | O59: 58,126,193,261,328,396,463,531,598,666,733,801,868,936,1000 | P59: 15 | Q59: run("Z Project...", "projection=[Average Intensity]");
A60: 59 | B60: 0.78603 | C60: 0.00817 | G60: 3948 | H60: 4 | I60: 3948 | J60: 4 | L60: 59,126,194,262,329,396,464,531,599,667,734,801,869,936,1000 | N60: 59 | O60: 59,126,194,262,329,396,464,531,599,667,734,801,869,936,1000 | P60: 15 | Q60: imageCalculator("Subtract create stack", "Y","AVG_Y");
A61: 60 | B61: 0.79486 | C61: 0.00883 | G61: 4005 | H61: 5 | I61: 4005 | J61: 5 | K61: 5,73,140,208,275,342,410,478,545,613,680,748,815,883,950 | L61: 60,127,195,262,330,397,465,532,600,667,735,802,870,937,1000 | N61: 60 | O61: 60,127,195,262,330,397,465,532,600,667,735,802,870,937,1000 | P61: 15 | Q61: selectWindow("Result of Y");
A62: 61 | B62: 0.81979 | C62: 0.02493 | G62: 4073 | H62: 5 | I62: 4073 | J62: 5 | L62: 61,129,196,264,331,398,466,534,601,669,736,804,871,938 | N62: 61 | O62: 61,129,196,264,331,398,466,534,601,669,736,804,871,938 | P62: 14 | Q62: run("Square", "stack");
A63: 62 | B63: 0.83192 | C63: 0.01213 | G63: 4140 | H63: 5 | I63: 4140 | J63: 5 | L63: 1,62,129,197,265,332,400,467,534,602,670,737,805,872,939 | N63: 62 | O63: 1,62,129,197,265,332,400,467,534,602,670,737,805,872,939 | P63: 15 | Q63: run("Z Project...", "projection=[Sum Slices]");
A64: 63 | B64: 0.84237 | C64: 0.01045 | G64: 4208 | H64: 5 | I64: 4208 | J64: 5 | L64: 1,63,130,198,265,332,401,468,535,603,670,738,805,873,940 | N64: 63 | O64: 1,63,130,198,265,332,401,468,535,603,670,738,805,873,940 | P64: 15 | Q64: =$W$3&P5&$X$2 -> run("Divide...", "value=15");
A65: 64 | B65: 0.85722 | C65: 0.01485 | G65: 4275 | H65: 5 | I65: 4275 | J65: 5 | L65: 1,64,132,199,267,335,402,469,537,604,672,739,807,874,941 | N65: 64 | O65: 1,64,132,199,267,335,402,469,537,604,672,739,807,874,941 | P65: 15 | Q65: run("Square Root");
A66: 65 | B66: 0.86712 | C66: 0.0099 | E66: =IF(D66="","",A66) ->  | G66: 4342 | H66: 5 | I66: 4342 | J66: 5 | L66: 1,65,133,200,268,335,402,470,537,605,673,740,807,875,942 | N66: 65 | O66: 1,65,133,200,268,335,402,470,537,605,673,740,807,875,942 | P66: 15 | Q66: rename("4");
A67: 66 | B67: 0.87606 | C67: =(B67-B66)/(A67-A66) -> 0.00894 | F67: =IF(E67="","",ROUNDUP(E67/$R$2,0)) ->  | G67: 4410 | H67: 5 | I67: 4410 | J67: 5 | K67: =IF(J67=J66,"",IF(J67=J67,I67-(J67-1)*$R$2,"")&IF(J68=J67,","&I68-(J68-1)*$R$2,"")&IF(J69=J67,","&I69-(J69-1)*$R$2,"")&IF(J70=J67,","&I70-(J70-1)*$R$2,"")&IF(J71=J67,","&I71-(J71-1)*$R$2,"")&IF(J72=J67,","&I72-(J72-1)*$R$2,"")&IF(J73=J67,","&I73-(J73-1)*$R$2,"")&IF(J74=J67,","&I74-(J74-1)*$R$2,"")&IF(J75=J67,","&I75-(J75-1)*$R$2,"")&IF(J76=J67,","&I76-(J76-1)*$R$2,"")&IF(J77=J67,","&I77-(J77-1)*$R$2,"")&IF(J78=J67,","&I78-(J78-1)*$R$2,"")&IF(J79=J67,","&I79-(J79-1)*$R$2,"")&IF(J80=J67,","&I80-(J80-1)*$R$2,"")&IF(J81=J67,","&I81-(J81-1)*$R$2,"")&IF(J82=J67,","&I82-(J82-1)*$R$2,"")&IF(J83=J67,","&I83-(J83-1)*$R$2,"")&IF(J84=J67,","&I84-(J84-1)*$R$2,"")&IF(J85=J67,","&I85-(J85-1)*$R$2,"")&IF(J86=J67,","&I86-(J86-1)*$R$2,"")&IF(J87=J67,","&I87-(J87-1)*$R$2,"")&IF(J88=J67,","&I88-(J88-1)*$R$2,"")&IF(J89=J67,","&I89-(J89-1)*$R$2,"")&IF(J90=J67,","&I90-(J90-1)*$R$2,"")&IF(J91=J67,","&I91-(J91-1)*$R$2,"")&IF(J92=J67,","&I92-(J92-1)*$R$2,"")&IF(J93=J67,","&I93-(J93-1)*$R$2,"")&IF(J94=J67,","&I94-(J94-1)*$R$2,"")&IF(J95=J67,","&I95-(J95-1)*$R$2,"")) ->  | L67: 1,66,133,201,268,336,403,471,538,606,673,741,808,876,943 | N67: 66 | O67: 1,66,133,201,268,336,403,471,538,606,673,741,808,876,943 | P67: =COUNTIF(J$2:J$3099,N67) -> 15 | Q67: selectWindow("Result of Y");
A68: 67 | B68: 0.8867 | C68: 0.01064 | G68: 4478 | H68: 5 | I68: 4478 | J68: 5 | L68: 1,67,135,202,270,338,405,472,540,607,675,743,809,877,945 | N68: 67 | O68: 1,67,135,202,270,338,405,472,540,607,675,743,809,877,945 | P68: 15 | Q68: close();
A69: 68 | B69: 0.89285 | C69: 0.00615 | G69: 4545 | H69: 5 | I69: 4545 | J69: 5 | L69: 1,68,136,203,271,338,405,473,541,608,676,743,810,878,946 | N69: 68 | O69: 1,68,136,203,271,338,405,473,541,608,676,743,810,878,946 | P69: 15 | Q69: selectWindow("AVG_Y");
A70: 69 | B70: 0.89757 | C70: 0.00472 | D70: 0.89757 | E70: 69 | F70: 1 | G70: 4613 | H70: 5 | I70: 4613 | J70: 5 | L70: 1,69,136,204,272,339,406,474,541,609,676,744,811,879,947 | N70: 69 | O70: 1,69,136,204,272,339,406,474,541,609,676,744,811,879,947 | P70: 15 | Q70: close();
A71: 70 | B71: 0.89111 | C71: -0.00646 | G71: 4680 | H71: 5 | I71: 4680 | J71: 5 | L71: 2,70,137,205,272,340,407,475,542,610,677,745,812,880,947 | N71: 70 | O71: 2,70,137,205,272,340,407,475,542,610,677,745,812,880,947 | P71: 15 | Q71: selectWindow("Y");
A72: 71 | B72: 0.87985 | C72: -0.01126 | G72: 4748 | H72: 5 | I72: 4748 | J72: 5 | L72: 4,71,139,206,274,341,408,476,544,611,679,746,814,881,949 | N72: 71 | O72: 4,71,139,206,274,341,408,476,544,611,679,746,814,881,949 | P72: 15 | Q72: close();
A73: 72 | B73: 0.86917 | C73: -0.01068 | G73: 4815 | H73: 5 | I73: 4815 | J73: 5 | L73: 5,72,139,207,275,342,410,477,544,612,679,747,814,882,950 | N73: 72 | O73: 5,72,139,207,275,342,410,477,544,612,679,747,814,882,950 | P73: 15 | Q73: selectWindow("X");
A74: 73 | B74: 0.86295 | C74: -0.00622 | G74: 4883 | H74: 5 | I74: 4883 | J74: 5 | L74: 7,74,142,209,277,344,412,479,547,614,682,749,817,884,951 | N74: 73 | O74: 7,74,142,209,277,344,412,479,547,614,682,749,817,884,951 | P74: 15 | Q74: =$W$2&O6&$X$2 -> run("Make Substack...", " slices=5,73,140,208,275,342,410,478,545,613,680,748,815,883,950");
A75: 74 | B75: 0.85189 | C75: -0.01106 | G75: 4950 | H75: 5 | I75: 4950 | J75: 5 | L75: 7,75,143,210,278,345,412,480,547,615,682,750,818,885,952 | N75: 74 | O75: 7,75,143,210,278,345,412,480,547,615,682,750,818,885,952 | P75: 15 | Q75: rename("Y");
A76: 75 | B76: 0.84638 | C76: -0.00551 | G76: 5006 | H76: 6 | I76: 5006 | J76: 6 | K76: 6,73,141,209,276,344,411,478,546,614,681,748,816,883,951 | L76: 1000,1000,1000,1000,1000,1000,1000,1000,1000,1000,1000,1000,1000,1000,1000,1000,1000,1000,1000,1000,1000,1000,1000,1000,1000,1000,1000,1000,1000 | N76: 75 | O76: 1000,1000,1000,1000,1000,1000,1000,1000,1000,1000,1000,1000,1000,1000,1000,1000,1000,1000,1000,1000,1000,1000,1000,1000,1000,1000,1000,1000,1000 | P76: 15 | Q76: run("Z Project...", "projection=[Average Intensity]");
A77: 76 | B77: 0.8362 | C77: -0.01018 | G77: 5073 | H77: 6 | I77: 5073 | J77: 6 | Q77: imageCalculator("Subtract create stack", "Y","AVG_Y");
A78: 77 | B78: 0.82318 | C78: -0.01302 | G78: 5141 | H78: 6 | I78: 5141 | J78: 6 | Q78: selectWindow("Result of Y");
A79: 78 | B79: 0.80737 | C79: -0.01581 | G79: 5209 | H79: 6 | I79: 5209 | J79: 6 | Q79: run("Square", "stack");
A80: 79 | B80: 0.78094 | C80: -0.02643 | D80: =IF(A80>=15,IF(AND(C80>=0,C81<0,B80>=B79,B80>=B78,B80>=B77,B80>=B76,B80>=B75,B80>=B74,B80>=B73,B80>=B72,B80>=B71,B80>=B70,B80>=B69,B80>=B68,B80>=B67,B80>=B66,B80>=B65,B80>=B81,B80>=B82,B80>=B83,B80>=B84,B80>=B85,B80>=B86,B80>=B87,B80>=B88,B80>=B89,B80>=B90,B80>=B91,B80>=B92,B80>=B93,B80>=B94,B80>=B95),B80,""),"") ->  | G80: 5276 | H80: 6 | I80: 5276 | J80: 6 | Q80: run("Z Project...", "projection=[Sum Slices]");
A81: 80 | B81: 0.73794 | C81: -0.043 | G81: 5344 | H81: 6 | I81: 5344 | J81: 6 | Q81: =$W$3&P6&$X$2 -> run("Divide...", "value=15");
A82: 81 | B82: 0.67335 | C82: -0.06459 | G82: 5411 | H82: 6 | I82: 5411 | J82: 6 | Q82: run("Square Root");
A83: 82 | B83: 0.64142 | C83: -0.03193 | G83: 5478 | H83: 6 | I83: 5478 | J83: 6 | Q83: rename("5");
A84: 83 | B84: 0.62184 | C84: -0.01958 | G84: 5546 | H84: 6 | I84: 5546 | J84: 6 | Q84: selectWindow("Result of Y");
A85: 84 | B85: 0.59414 | C85: -0.0277 | G85: 5614 | H85: 6 | I85: 5614 | J85: 6 | Q85: close();
A86: 85 | B86: 0.58056 | C86: -0.01358 | G86: 5681 | H86: 6 | I86: 5681 | J86: 6 | Q86: selectWindow("AVG_Y");
A87: 86 | B87: 0.57829 | C87: -0.00227 | G87: 5748 | H87: 6 | I87: 5748 | J87: 6 | Q87: close();
A88: 87 | B88: 0.57454 | C88: -0.00375 | G88: 5816 | H88: 6 | I88: 5816 | J88: 6 | Q88: selectWindow("Y");
A89: 88 | B89: 0.58185 | C89: 0.00731 | G89: 5883 | H89: 6 | I89: 5883 | J89: 6 | Q89: close();
A90: 89 | B90: 0.57807 | C90: -0.00378 | G90: 5951 | H90: 6 | I90: 5951 | J90: 6 | Q90: selectWindow("X");
A91: 90 | B91: 0.57237 | C91: -0.0057 | G91: 6007 | H91: 7 | I91: 6007 | J91: 7 | K91: 7,74,142,209,277,344,412,479,547,614,682,749,816,884,951 | Q91: =$W$2&O7&$X$2 -> run("Make Substack...", " slices=6,73,141,209,276,344,411,478,546,614,681,748,816,883,951");
A92: 91 | B92: 0.55455 | C92: -0.01782 | G92: 6074 | H92: 7 | I92: 6074 | J92: 7 | Q92: rename("Y");
A93: 92 | B93: 0.54879 | C93: -0.00576 | G93: 6142 | H93: 7 | I93: 6142 | J93: 7 | Q93: run("Z Project...", "projection=[Average Intensity]");
A94: 93 | B94: 0.54886 | C94: 7e-05 | G94: 6209 | H94: 7 | I94: 6209 | J94: 7 | Q94: imageCalculator("Subtract create stack", "Y","AVG_Y");
A95: 94 | B95: 0.54464 | C95: -0.00422 | G95: 6277 | H95: 7 | I95: 6277 | J95: 7 | Q95: selectWindow("Result of Y");
A96: 95 | B96: 0.54589 | C96: 0.00125 | G96: 6344 | H96: 7 | I96: 6344 | J96: 7 | Q96: run("Square", "stack");
A97: 96 | B97: 0.54603 | C97: 0.00014 | G97: 6412 | H97: 7 | I97: 6412 | J97: 7 | Q97: run("Z Project...", "projection=[Sum Slices]");
A98: 97 | B98: 0.54001 | C98: -0.00602 | D98: =IF(A98>=15,IF(AND(C98>=0,C99<0,B98>=B97,B98>=B96,B98>=B95,B98>=B94,B98>=B93,B98>=B92,B98>=B91,B98>=B90,B98>=B89,B98>=B88,B98>=B87,B98>=B86,B98>=B85,B98>=B84,B98>=B83,B98>=B99,B98>=B100,B98>=B101,B98>=B102,B98>=B103,B98>=B104,B98>=B105,B98>=B106,B98>=B107,B98>=B108,B98>=B109,B98>=B110,B98>=B111,B98>=B112,B98>=B113),B98,""),"") ->  | G98: 6479 | H98: 7 | I98: 6479 | J98: 7 | Q98: =$W$3&P7&$X$2 -> run("Divide...", "value=15");
A99: 98 | B99: 0.54558 | C99: 0.00557 | F99: =IF(E99="","",ROUNDUP(E99/$R$2,0)) ->  | G99: 6547 | H99: 7 | I99: 6547 | J99: 7 | Q99: run("Square Root");
A100: 99 | B100: 0.54255 | C100: -0.00303 | G100: 6614 | H100: 7 | I100: 6614 | J100: 7 | Q100: rename("6");
A101: 100 | B101: 0.55245 | C101: 0.0099 | G101: 6682 | H101: 7 | I101: 6682 | J101: 7 | Q101: selectWindow("Result of Y");
A102: 101 | B102: 0.56934 | C102: 0.01689 | G102: 6749 | H102: 7 | I102: 6749 | J102: 7 | Q102: close();
A103: 102 | B103: 0.57496 | C103: 0.00562 | G103: 6816 | H103: 7 | I103: 6816 | J103: 7 | Q103: selectWindow("AVG_Y");
A104: 103 | B104: 0.58492 | C104: 0.00996 | G104: 6884 | H104: 7 | I104: 6884 | J104: 7 | Q104: close();
A105: 104 | B105: 0.59421 | C105: 0.00929 | G105: 6951 | H105: 7 | I105: 6951 | J105: 7 | Q105: selectWindow("Y");
A106: 105 | B106: 0.59953 | C106: 0.00532 | G106: 7008 | H106: 8 | I106: 7008 | J106: 8 | K106: 8,76,143,211,278,346,413,481,548,616,683,751,818,886,953 | Q106: close();
A107: 106 | B107: 0.59926 | C107: -0.00027 | G107: 7076 | H107: 8 | I107: 7076 | J107: 8 | Q107: selectWindow("X");
A108: 107 | B108: 0.6028 | C108: 0.00354 | G108: 7143 | H108: 8 | I108: 7143 | J108: 8 | Q108: =$W$2&O8&$X$2 -> run("Make Substack...", " slices=7,74,142,209,277,344,412,479,547,614,682,749,816,884,951");
A109: 108 | B109: 0.60834 | C109: 0.00554 | G109: 7211 | H109: 8 | I109: 7211 | J109: 8 | Q109: rename("Y");
A110: 109 | B110: 0.61222 | C110: 0.00388 | G110: 7278 | H110: 8 | I110: 7278 | J110: 8 | Q110: run("Z Project...", "projection=[Average Intensity]");
A111: 110 | B111: 0.61268 | C111: 0.00046 | G111: 7346 | H111: 8 | I111: 7346 | J111: 8 | Q111: imageCalculator("Subtract create stack", "Y","AVG_Y");
A112: 111 | B112: 0.62488 | C112: 0.0122 | G112: 7413 | H112: 8 | I112: 7413 | J112: 8 | Q112: selectWindow("Result of Y");
A113: 112 | B113: 0.62991 | C113: 0.00503 | G113: 7481 | H113: 8 | I113: 7481 | J113: 8 | Q113: run("Square", "stack");
A114: 113 | B114: 0.63677 | C114: 0.00686 | G114: 7548 | H114: 8 | I114: 7548 | J114: 8 | Q114: run("Z Project...", "projection=[Sum Slices]");
A115: 114 | B115: 0.65176 | C115: 0.01499 | G115: 7616 | H115: 8 | I115: 7616 | J115: 8 | Q115: =$W$3&P8&$X$2 -> run("Divide...", "value=15");
A116: 115 | B116: 0.65946 | C116: 0.0077 | G116: 7683 | H116: 8 | I116: 7683 | J116: 8 | Q116: run("Square Root");
A117: 116 | B117: 0.66658 | C117: 0.00712 | G117: 7751 | H117: 8 | I117: 7751 | J117: 8 | Q117: rename("7");
A118: 117 | B118: 0.6812 | C118: 0.01462 | G118: 7818 | H118: 8 | I118: 7818 | J118: 8 | Q118: selectWindow("Result of Y");
A119: 118 | B119: 0.68606 | C119: 0.00486 | G119: 7886 | H119: 8 | I119: 7886 | J119: 8 | Q119: close();
A120: 119 | B120: 0.69213 | C120: 0.00607 | G120: 7953 | H120: 8 | I120: 7953 | J120: 8 | Q120: selectWindow("AVG_Y");
A121: 120 | B121: 0.71178 | C121: 0.01965 | G121: 8009 | H121: 9 | I121: 8009 | J121: 9 | K121: 9,76,144,212,279,346,414,481,549,616,684,751,819,886,954 | Q121: close();
A122: 121 | B122: 0.71838 | C122: 0.0066 | G122: 8076 | H122: 9 | I122: 8076 | J122: 9 | Q122: selectWindow("Y");
A123: 122 | B123: 0.72994 | C123: 0.01156 | G123: 8144 | H123: 9 | I123: 8144 | J123: 9 | Q123: close();
A124: 123 | B124: 0.73538 | C124: 0.00544 | G124: 8212 | H124: 9 | I124: 8212 | J124: 9 | Q124: selectWindow("X");
A125: 124 | B125: 0.75425 | C125: 0.01887 | G125: 8279 | H125: 9 | I125: 8279 | J125: 9 | Q125: =$W$2&O9&$X$2 -> run("Make Substack...", " slices=8,76,143,211,278,346,413,481,548,616,683,751,818,886,953");
A126: 125 | B126: 0.76809 | C126: 0.01384 | G126: 8346 | H126: 9 | I126: 8346 | J126: 9 | Q126: rename("Y");
A127: 126 | B127: 0.77865 | C127: 0.01056 | G127: 8414 | H127: 9 | I127: 8414 | J127: 9 | Q127: run("Z Project...", "projection=[Average Intensity]");
A128: 127 | B128: 0.7994 | C128: 0.02075 | G128: 8481 | H128: 9 | I128: 8481 | J128: 9 | Q128: imageCalculator("Subtract create stack", "Y","AVG_Y");
A129: 128 | B129: 0.80826 | C129: 0.00886 | G129: 8549 | H129: 9 | I129: 8549 | J129: 9 | Q129: selectWindow("Result of Y");
A130: 129 | B130: 0.81987 | C130: 0.01161 | E130: =IF(D130="","",A130) ->  | G130: 8616 | H130: 9 | I130: 8616 | J130: 9 | Q130: run("Square", "stack");
A131: 130 | B131: 0.841 | C131: =(B131-B130)/(A131-A130) -> 0.02113 | F131: =IF(E131="","",ROUNDUP(E131/$R$2,0)) ->  | G131: 8684 | H131: 9 | I131: 8684 | J131: 9 | K131: =IF(J131=J130,"",IF(J131=J131,I131-(J131-1)*$R$2,"")&IF(J132=J131,","&I132-(J132-1)*$R$2,"")&IF(J133=J131,","&I133-(J133-1)*$R$2,"")&IF(J134=J131,","&I134-(J134-1)*$R$2,"")&IF(J135=J131,","&I135-(J135-1)*$R$2,"")&IF(J136=J131,","&I136-(J136-1)*$R$2,"")&IF(J137=J131,","&I137-(J137-1)*$R$2,"")&IF(J138=J131,","&I138-(J138-1)*$R$2,"")&IF(J139=J131,","&I139-(J139-1)*$R$2,"")&IF(J140=J131,","&I140-(J140-1)*$R$2,"")&IF(J141=J131,","&I141-(J141-1)*$R$2,"")&IF(J142=J131,","&I142-(J142-1)*$R$2,"")&IF(J143=J131,","&I143-(J143-1)*$R$2,"")&IF(J144=J131,","&I144-(J144-1)*$R$2,"")&IF(J145=J131,","&I145-(J145-1)*$R$2,"")&IF(J146=J131,","&I146-(J146-1)*$R$2,"")&IF(J147=J131,","&I147-(J147-1)*$R$2,"")&IF(J148=J131,","&I148-(J148-1)*$R$2,"")&IF(J149=J131,","&I149-(J149-1)*$R$2,"")&IF(J150=J131,","&I150-(J150-1)*$R$2,"")&IF(J151=J131,","&I151-(J151-1)*$R$2,"")&IF(J152=J131,","&I152-(J152-1)*$R$2,"")&IF(J153=J131,","&I153-(J153-1)*$R$2,"")&IF(J154=J131,","&I154-(J154-1)*$R$2,"")&IF(J155=J131,","&I155-(J155-1)*$R$2,"")&IF(J156=J131,","&I156-(J156-1)*$R$2,"")&IF(J157=J131,","&I157-(J157-1)*$R$2,"")&IF(J158=J131,","&I158-(J158-1)*$R$2,"")&IF(J159=J131,","&I159-(J159-1)*$R$2,"")) ->  | Q131: run("Z Project...", "projection=[Sum Slices]");
A132: 131 | B132: 0.85073 | C132: 0.00973 | G132: 8751 | H132: 9 | I132: 8751 | J132: 9 | Q132: =$W$3&P9&$X$2 -> run("Divide...", "value=15");
A133: 132 | B133: 0.85946 | C133: 0.00873 | G133: 8819 | H133: 9 | I133: 8819 | J133: 9 | Q133: run("Square Root");
A134: 133 | B134: 0.86728 | C134: 0.00782 | G134: 8886 | H134: 9 | I134: 8886 | J134: 9 | Q134: rename("8");
A135: 134 | B135: 0.88107 | C135: 0.01379 | G135: 8954 | H135: 9 | I135: 8954 | J135: 9 | Q135: selectWindow("Result of Y");
A136: 135 | B136: 0.88869 | C136: 0.00762 | G136: 9010 | H136: 10 | I136: 9010 | J136: 10 | K136: 10,77,145,212,279,347,415,482,550,617,685,752,819,887,954 | Q136: close();
A137: 136 | B137: 0.89297 | C137: 0.00428 | D137: 0.89297 | E137: 136 | F137: 1 | G137: 9077 | H137: 10 | I137: 9077 | J137: 10 | Q137: selectWindow("AVG_Y");
A138: 137 | B138: 0.8915 | C138: -0.00147 | G138: 9145 | H138: 10 | I138: 9145 | J138: 10 | Q138: close();
A139: 138 | B139: 0.88439 | C139: -0.00711 | G139: 9212 | H139: 10 | I139: 9212 | J139: 10 | Q139: selectWindow("Y");
A140: 139 | B140: 0.87554 | C140: -0.00885 | G140: 9279 | H140: 10 | I140: 9279 | J140: 10 | Q140: close();
A141: 140 | B141: 0.86311 | C141: -0.01243 | G141: 9347 | H141: 10 | I141: 9347 | J141: 10 | Q141: selectWindow("X");
A142: 141 | B142: 0.8565 | C142: -0.00661 | G142: 9415 | H142: 10 | I142: 9415 | J142: 10 | Q142: =$W$2&O10&$X$2 -> run("Make Substack...", " slices=9,76,144,212,279,346,414,481,549,616,684,751,819,886,954");
A143: 142 | B143: 0.852 | C143: -0.0045 | G143: 9482 | H143: 10 | I143: 9482 | J143: 10 | Q143: rename("Y");
A144: 143 | B144: 0.84404 | C144: -0.00796 | D144: =IF(A144>=15,IF(AND(C144>=0,C145<0,B144>=B143,B144>=B142,B144>=B141,B144>=B140,B144>=B139,B144>=B138,B144>=B137,B144>=B136,B144>=B135,B144>=B134,B144>=B133,B144>=B132,B144>=B131,B144>=B130,B144>=B129,B144>=B145,B144>=B146,B144>=B147,B144>=B148,B144>=B149,B144>=B150,B144>=B151,B144>=B152,B144>=B153,B144>=B154,B144>=B155,B144>=B156,B144>=B157,B144>=B158,B144>=B159),B144,""),"") ->  | G144: 9550 | H144: 10 | I144: 9550 | J144: 10 | Q144: run("Z Project...", "projection=[Average Intensity]");
A145: 144 | B145: 0.83305 | C145: -0.01099 | G145: 9617 | H145: 10 | I145: 9617 | J145: 10 | Q145: imageCalculator("Subtract create stack", "Y","AVG_Y");
A146: 145 | B146: 0.8232 | C146: -0.00985 | G146: 9685 | H146: 10 | I146: 9685 | J146: 10 | Q146: selectWindow("Result of Y");
A147: 146 | B147: 0.80698 | C147: -0.01622 | G147: 9752 | H147: 10 | I147: 9752 | J147: 10 | Q147: run("Square", "stack");
A148: 147 | B148: 0.73902 | C148: -0.06796 | G148: 9819 | H148: 10 | I148: 9819 | J148: 10 | Q148: run("Z Project...", "projection=[Sum Slices]");
A149: 148 | B149: 0.70174 | C149: -0.03728 | G149: 9887 | H149: 10 | I149: 9887 | J149: 10 | Q149: =$W$3&P10&$X$2 -> run("Divide...", "value=15");
A150: 149 | B150: 0.66717 | C150: -0.03457 | G150: 9954 | H150: 10 | I150: 9954 | J150: 10 | Q150: run("Square Root");
A151: 150 | B151: 0.62106 | C151: -0.04611 | G151: 10011 | H151: 11 | I151: 10011 | J151: 11 | K151: 11,79,146,214,281,349,416,484,551,619,686,754,821,888,956 | Q151: rename("9");
A152: 151 | B152: 0.60094 | C152: -0.02012 | G152: 10079 | H152: 11 | I152: 10079 | J152: 11 | Q152: selectWindow("Result of Y");
A153: 152 | B153: 0.5905 | C153: -0.01044 | G153: 10146 | H153: 11 | I153: 10146 | J153: 11 | Q153: close();
A154: 153 | B154: 0.58023 | C154: -0.01027 | G154: 10214 | H154: 11 | I154: 10214 | J154: 11 | Q154: selectWindow("AVG_Y");
A155: 154 | B155: 0.57642 | C155: -0.00381 | G155: 10281 | H155: 11 | I155: 10281 | J155: 11 | Q155: close();
A156: 155 | B156: 0.58509 | C156: 0.00867 | G156: 10349 | H156: 11 | I156: 10349 | J156: 11 | Q156: selectWindow("Y");
A157: 156 | B157: 0.58006 | C157: -0.00503 | G157: 10416 | H157: 11 | I157: 10416 | J157: 11 | Q157: close();
A158: 157 | B158: 0.57184 | C158: -0.00822 | G158: 10484 | H158: 11 | I158: 10484 | J158: 11 | Q158: selectWindow("X");
A159: 158 | B159: 0.56532 | C159: -0.00652 | G159: 10551 | H159: 11 | I159: 10551 | J159: 11 | Q159: =$W$2&O11&$X$2 -> run("Make Substack...", " slices=10,77,145,212,279,347,415,482,550,617,685,752,819,887,954");
A160: 159 | B160: 0.55797 | C160: -0.00735 | G160: 10619 | H160: 11 | I160: 10619 | J160: 11 | Q160: rename("Y");
A161: 160 | B161: 0.54819 | C161: -0.00978 | G161: 10686 | H161: 11 | I161: 10686 | J161: 11 | Q161: run("Z Project...", "projection=[Average Intensity]");
A162: 161 | B162: 0.54743 | C162: -0.00076 | G162: 10754 | H162: 11 | I162: 10754 | J162: 11 | Q162: imageCalculator("Subtract create stack", "Y","AVG_Y");
A163: 162 | B163: 0.54731 | C163: -0.00012 | G163: 10821 | H163: 11 | I163: 10821 | J163: 11 | Q163: selectWindow("Result of Y");
A164: 163 | B164: 0.55045 | C164: 0.00314 | G164: 10888 | H164: 11 | I164: 10888 | J164: 11 | Q164: run("Square", "stack");
A165: 164 | B165: 0.54729 | C165: -0.00316 | G165: 10956 | H165: 11 | I165: 10956 | J165: 11 | Q165: run("Z Project...", "projection=[Sum Slices]");
A166: 165 | B166: 0.54935 | C166: 0.00206 | G166: 11012 | H166: 12 | I166: 11012 | J166: 12 | K166: 12,80,147,215,282,349,417,485,552,619,687,755,822,889,957 | Q166: =$W$3&P11&$X$2 -> run("Divide...", "value=15");
A167: 166 | B167: 0.54704 | C167: -0.00231 | G167: 11080 | H167: 12 | I167: 11080 | J167: 12 | Q167: run("Square Root");
A168: 167 | B168: 0.55803 | C168: 0.01099 | G168: 11147 | H168: 12 | I168: 11147 | J168: 12 | Q168: rename("10");
A169: 168 | B169: 0.56019 | C169: 0.00216 | G169: 11215 | H169: 12 | I169: 11215 | J169: 12 | Q169: selectWindow("Result of Y");
A170: 169 | B170: 0.56944 | C170: 0.00925 | G170: 11282 | H170: 12 | I170: 11282 | J170: 12 | Q170: close();
A171: 170 | B171: 0.58036 | C171: 0.01092 | G171: 11349 | H171: 12 | I171: 11349 | J171: 12 | Q171: selectWindow("AVG_Y");
A172: 171 | B172: 0.59069 | C172: 0.01033 | G172: 11417 | H172: 12 | I172: 11417 | J172: 12 | Q172: close();
A173: 172 | B173: 0.59417 | C173: 0.00348 | G173: 11485 | H173: 12 | I173: 11485 | J173: 12 | Q173: selectWindow("Y");
A174: 173 | B174: 0.60206 | C174: 0.00789 | G174: 11552 | H174: 12 | I174: 11552 | J174: 12 | Q174: close();
A175: 174 | B175: 0.60827 | C175: 0.00621 | G175: 11619 | H175: 12 | I175: 11619 | J175: 12 | Q175: selectWindow("X");
A176: 175 | B176: 0.60539 | C176: -0.00288 | G176: 11687 | H176: 12 | I176: 11687 | J176: 12 | Q176: =$W$2&O12&$X$2 -> run("Make Substack...", " slices=11,79,146,214,281,349,416,484,551,619,686,754,821,888,956");
A177: 176 | B177: 0.60845 | C177: 0.00306 | G177: 11755 | H177: 12 | I177: 11755 | J177: 12 | Q177: rename("Y");
A178: 177 | B178: 0.6129 | C178: 0.00445 | G178: 11822 | H178: 12 | I178: 11822 | J178: 12 | Q178: run("Z Project...", "projection=[Average Intensity]");
A179: 178 | B179: 0.62349 | C179: 0.01059 | G179: 11889 | H179: 12 | I179: 11889 | J179: 12 | Q179: imageCalculator("Subtract create stack", "Y","AVG_Y");
A180: 179 | B180: 0.62609 | C180: 0.0026 | G180: 11957 | H180: 12 | I180: 11957 | J180: 12 | Q180: selectWindow("Result of Y");
A181: 180 | B181: 0.63867 | C181: 0.01258 | G181: 12013 | H181: 13 | I181: 12013 | J181: 13 | K181: 13,80,148,215,283,350,418,485,553,620,688,755,823,890,958 | Q181: run("Square", "stack");
A182: 181 | B182: 0.64137 | C182: 0.0027 | G182: 12080 | H182: 13 | I182: 12080 | J182: 13 | Q182: run("Z Project...", "projection=[Sum Slices]");
A183: 182 | B183: 0.64899 | C183: 0.00762 | G183: 12148 | H183: 13 | I183: 12148 | J183: 13 | Q183: =$W$3&P12&$X$2 -> run("Divide...", "value=15");
A184: 183 | B184: 0.66318 | C184: 0.01419 | G184: 12215 | H184: 13 | I184: 12215 | J184: 13 | Q184: run("Square Root");
A185: 184 | B185: 0.6725 | C185: 0.00932 | G185: 12283 | H185: 13 | I185: 12283 | J185: 13 | Q185: rename("11");
A186: 185 | B186: 0.68453 | C186: 0.01203 | G186: 12350 | H186: 13 | I186: 12350 | J186: 13 | Q186: selectWindow("Result of Y");
A187: 186 | B187: 0.6884 | C187: 0.00387 | G187: 12418 | H187: 13 | I187: 12418 | J187: 13 | Q187: close();
A188: 187 | B188: 0.70224 | C188: 0.01384 | G188: 12485 | H188: 13 | I188: 12485 | J188: 13 | Q188: selectWindow("AVG_Y");
A189: 188 | B189: 0.71243 | C189: 0.01019 | G189: 12553 | H189: 13 | I189: 12553 | J189: 13 | Q189: close();
A190: 189 | B190: 0.71922 | C190: 0.00679 | G190: 12620 | H190: 13 | I190: 12620 | J190: 13 | Q190: selectWindow("Y");
A191: 190 | B191: 0.73563 | C191: 0.01641 | G191: 12688 | H191: 13 | I191: 12688 | J191: 13 | Q191: close();
A192: 191 | B192: 0.74817 | C192: 0.01254 | G192: 12755 | H192: 13 | I192: 12755 | J192: 13 | Q192: selectWindow("X");
A193: 192 | B193: 0.75732 | C193: 0.00915 | G193: 12823 | H193: 13 | I193: 12823 | J193: 13 | Q193: =$W$2&O13&$X$2 -> run("Make Substack...", " slices=12,80,147,215,282,349,417,485,552,619,687,755,822,889,957");
A194: 193 | B194: 0.77616 | C194: 0.01884 | E194: =IF(D194="","",A194) ->  | G194: 12890 | H194: 13 | I194: 12890 | J194: 13 | Q194: rename("Y");
A195: 194 | B195: 0.78688 | C195: =(B195-B194)/(A195-A194) -> 0.01072 | F195: =IF(E195="","",ROUNDUP(E195/$R$2,0)) ->  | G195: 12958 | H195: 13 | I195: 12958 | J195: 13 | K195: =IF(J195=J194,"",IF(J195=J195,I195-(J195-1)*$R$2,"")&IF(J196=J195,","&I196-(J196-1)*$R$2,"")&IF(J197=J195,","&I197-(J197-1)*$R$2,"")&IF(J198=J195,","&I198-(J198-1)*$R$2,"")&IF(J199=J195,","&I199-(J199-1)*$R$2,"")&IF(J200=J195,","&I200-(J200-1)*$R$2,"")&IF(J201=J195,","&I201-(J201-1)*$R$2,"")&IF(J202=J195,","&I202-(J202-1)*$R$2,"")&IF(J203=J195,","&I203-(J203-1)*$R$2,"")&IF(J204=J195,","&I204-(J204-1)*$R$2,"")&IF(J205=J195,","&I205-(J205-1)*$R$2,"")&IF(J206=J195,","&I206-(J206-1)*$R$2,"")&IF(J207=J195,","&I207-(J207-1)*$R$2,"")&IF(J208=J195,","&I208-(J208-1)*$R$2,"")&IF(J209=J195,","&I209-(J209-1)*$R$2,"")&IF(J210=J195,","&I210-(J210-1)*$R$2,"")&IF(J211=J195,","&I211-(J211-1)*$R$2,"")&IF(J212=J195,","&I212-(J212-1)*$R$2,"")&IF(J213=J195,","&I213-(J213-1)*$R$2,"")&IF(J214=J195,","&I214-(J214-1)*$R$2,"")&IF(J215=J195,","&I215-(J215-1)*$R$2,"")&IF(J216=J195,","&I216-(J216-1)*$R$2,"")&IF(J217=J195,","&I217-(J217-1)*$R$2,"")&IF(J218=J195,","&I218-(J218-1)*$R$2,"")&IF(J219=J195,","&I219-(J219-1)*$R$2,"")&IF(J220=J195,","&I220-(J220-1)*$R$2,"")&IF(J221=J195,","&I221-(J221-1)*$R$2,"")&IF(J222=J195,","&I222-(J222-1)*$R$2,"")&IF(J223=J195,","&I223-(J223-1)*$R$2,"")) ->  | Q195: run("Z Project...", "projection=[Average Intensity]");
A196: 195 | B196: 0.79984 | C196: 0.01296 | G196: 13014 | H196: 14 | I196: 13014 | J196: 14 | K196: 14,81,149,216,283,351,418,486,554,621,689,756,824,891,958 | Q196: imageCalculator("Subtract create stack", "Y","AVG_Y");
A197: 196 | B197: 0.81248 | C197: 0.01264 | G197: 13081 | H197: 14 | I197: 13081 | J197: 14 | Q197: selectWindow("Result of Y");
A198: 197 | B198: 0.83147 | C198: 0.01899 | G198: 13149 | H198: 14 | I198: 13149 | J198: 14 | Q198: run("Square", "stack");
A199: 198 | B199: 0.84371 | C199: 0.01224 | G199: 13216 | H199: 14 | I199: 13216 | J199: 14 | Q199: run("Z Project...", "projection=[Sum Slices]");
A200: 199 | B200: 0.85383 | C200: 0.01012 | G200: 13283 | H200: 14 | I200: 13283 | J200: 14 | Q200: =$W$3&P13&$X$2 -> run("Divide...", "value=15");
... 4300 more rows
